Cogmind - Beta 15 @@@ ROGUE MODE // 2025.08.11 @ 19:26:00 Player: WitherScout Result: Destroyed by 7F-X6C(R) with Subdweller Laser Performance ------------- Evolutions (0) 0 Regions Visited (3) 600 Robots Destroyed (5) 25 Value Destroyed (110) 110 Prototype IDs (0) 0 Alien Tech Used (0) 0 Bonus (0) 0 TOTAL SCORE: 735 Bonus ------- None Cogmind --------- Core Integrity 0/250 Matter 295/300 Energy 97/100 System Corruption 0% Temperature Cool (6) Movement Rolling (90) Location -10/Subcaves Parts ------- > --- POWER (1) -------- (None) > --- PROPULSION (2) --- Wheel Compact Wheel > --- UTILITY (2) ------ Small Storage Unit Propulsion Shielding > --- WEAPON (2) ------- Small Laser > --- INVENTORY (8) ---- Light Ion Engine Scrap Shield Fragment (49) Scrap Shield Fragment (47) Scrap Shield Fragment (46) Peak State ------------ > --- POWER ------------ Ion Engine > --- PROPULSION ------- Compact Wheel Subdweller Monowheel > --- UTILITY ---------- Small Storage Unit Propulsion Shielding > --- WEAPON ----------- Small Laser Small Laser > --- INVENTORY -------- Light Ion Engine Wheel Scrap Shield Fragment Scrap Shield Fragment [Rating: 8] Favorites ----------- Power Ion Engine Engine Ion Engine Propulsion Compact Wheel Wheel Compact Wheel Utility Small Storage Unit Storage Small Storage Unit Protection Propulsion Shielding Weapon Small Laser Energy Gun Small Laser Ballistic Gun Light Assault Rifle Build | -11 -10 -10 -10 ------- Run | Yrd Mat Min Sub Slots Evolved . | . . . . Power . | . . . . Propulsion . | . . . . Utility . | . . . . Weapon . | . . . . Parts Attached 11 | 7 1 . 3 Power 3 | 2 . . 1 Engine 3 | 2 . . 1 Core . | . . . . Reactor . | . . . . Propulsion 3 | 2 . . 1 Treads . | . . . . Leg . | . . . . Wheel 3 | 2 . . 1 Hover . | . . . . Flight . | . . . . Utility 2 | 1 1 . . Device . | . . . . Storage 1 | 1 . . . Processor . | . . . . Hackware . | . . . . Protection 1 | . 1 . . Artifact . | . . . . Weapon 3 | 2 . . 1 Energy Gun 2 | 2 . . . Energy Cannon . | . . . . Ballistic Gun 1 | . . . 1 Ballistic Cannon . | . . . . Launcher . | . . . . Special Weapon . | . . . . Impact Weapon . | . . . . Slashing Weapon . | . . . . Piercing Weapon . | . . . . Special Melee Weapon . | . . . . Unidentified Prototypes . | . . . . Parts Lost 4 | . . . 4 Power 2 | . . . 2 Propulsion . | . . . . Utility . | . . . . Weapon 2 | . . . 2 Highest Loss Streak 2 | . . . 2 To Critical Strikes . | . . . . Average Backups 1 | . 1 1 1 Power . | . 1 1 1 Propulsion . | . . . . Utility . | . . . . Weapon . | . . . . Tool/Special . | . . . . Unused Backups . | . . . . Power . | . . . . Propulsion . | . . . . Utility . | . . . . Weapon . | . . . . Tool/Special . | . . . . Average Slot Usage (%) 98 | . 95 100 97 Engine 13 | . 14 14 13 Wheel 28 | . 28 28 28 Storage 14 | . 14 14 14 Protection 13 | . 10 14 14 Energy Gun 23 | . 28 28 19 Ballistic Gun 3 | . . . 7 Peak Build Rating 8 | 6 7 7 8 Average Rating 7 | 4 6 7 7 On Entrance 5 | . 6 7 7 Naked Turns . | . . . . Heaviest Build 13 | 12 13 13 13 Greatest Support 36 | 26 26 26 36 Greatest Overweight (x) . | . . . . Average Overweight (x) . | . . . . Largest Inventory Capacity 8 | 8 8 8 8 Average Capacity 7 | 6 8 8 8 Most Carried 4 | 1 1 1 4 Average Carried 2 | . 1 1 3 Final Capacity 8 | 8 8 8 8 Final Carried 4 | 1 1 1 4 Class Distribution -------------------- 100% | Mutant Dominant Class ---------------- Mutant | -10/Materials Mutant | -10/Mines Mutant | -10/Subcaves Resources | -11 -10 -10 -10 ----------- Run | Yrd Mat Min Sub Matter Collected 311 | 193 . . 118 Remotely . | . . . . Salvage Created 141 | . . . 141 Parts 12 | . . . 12 Haulers Intercepted . | . . . . Recyclers Shooed . | . . . . Parts Field Recycled . | . . . . Retrieved Matter . | . . . . Parts Self-Destructed 12 | . . . 12 Prevented . | . . . . Kills | -11 -10 -10 -10 ------- Run | Yrd Mat Min Sub Combat Hostiles Destroyed 5 | . . . 5 Guns 5 | . . . 5 Classes Destroyed 2 | . . . 2 Swarmer 3 | . . . 3 Subdweller 2 | . . . 2 Best Kill Streak 3 | . . . 3 Combat Bots Only 3 | . . . 3 Max Kills in Single Turn 1 | . . . 1 Gunslinging . | . . . . Exploded . | . . . . Melee . | . . . . Uniques/NPCs Destroyed . | . . . . Combat | -11 -10 -10 -10 -------- Run | Yrd Mat Min Sub Hostile Shots Fired 60 | . . . 60 Missed 19 | . . . 19 Hits 41 | . . . 41 Projectile 41 | . . . 41 Damage Taken 684 | . . . 684 Core 254 | . . . 254 Absorbed by Shields . | . . . . Redirected to Shielding 13 | . . . 13 Core Remaining (%) 100 | 100 . . . Volleys Fired 35 | . . . 35 Largest 2 | . . . 2 Hottest 80 | . . . 80 Shots Fired 58 | . . . 58 Gun 58 | . . . 58 Cannon . | . . . . Launcher . | . . . . Special . | . . . . Kinetic 14 | . . . 14 Thermal 44 | . . . 44 Explosive . | . . . . Electromagnetic . | . . . . Robot Hit Streak 14 | . . . 14 Robot Miss Streak 2 | . . . 2 Penetration Max . | . . . . Secondary Targets . | . . . . Shots Hit Robots 38 | . . . 38 Core Hits 9 | . . . 9 Critical Kills . | . . . . Critical Parts Destroyed . | . . . . Critical Strikes . | . . . . Melee Attacks . | . . . . Impact . | . . . . Slashing . | . . . . Piercing . | . . . . Sneak Attacks . | . . . . Combat Hostiles . | . . . . Follow-up Attacks . | . . . . Damage Inflicted 405 | . . . 405 Guns 405 | . . . 405 Cannons . | . . . . Explosions . | . . . . Melee . | . . . . Ramming . | . . . . Kinetic 50 | . . . 50 Thermal 355 | . . . 355 Explosive . | . . . . Electromagnetic . | . . . . Impact . | . . . . Slashing . | . . . . Piercing . | . . . . Highest Corruption . | . . . . Average Corruption . | . . . . Corruption Purged . | . . . . Corruption Blocked . | . . . . Overload Shots . | . . . . Overflow Damage . | . . . . Projectiles . | . . . . Explosions . | . . . . Melee . | . . . . Knockbacks . | . . . . Impact . | . . . . Kinetic . | . . . . Secondary . | . . . . Self-Inflicted Damage . | . . . . Shots . | . . . . Rammed . | . . . . Targets Rammed . | . . . . Kicked . | . . . . Crushed . | . . . . Highest Temperature 18 | . . . 18 Average Temperature 11 | . . . 11 Received Heat Transfer 126 | . . . 126 Siege Activations . | . . . . Martial Activations . | . . . . Shielding Activations . | . . . . Robots Disrupted . | . . . . Combat Hostiles . | . . . . Robots Corrupted . | . . . . Combat Hostiles . | . . . . Parts Fried . | . . . . Impact Corruptions . | . . . . Robots Melted . | . . . . Combat Hostiles . | . . . . Parts Melted 1 | . . . 1 Heat Transferred 825 | . . . 825 Parts Sabotaged . | . . . . Parts Stolen . | . . . . Parts Stripped . | . . . . Power Chain Reactions . | . . . . Alert | -11 -10 -10 -10 ------- Run | Yrd Mat Min Sub Maximum Alert Level . | . . . . Low Security (%) 100 | 100 100 100 . Level 1 . | . . . . Level 2 . | . . . . Level 3 . | . . . . Level 4 . | . . . . Level 5 . | . . . . High Security . | . . . . Max Security . | . . . . Peak Influence . | . . . . Initial . | . . . . Average . | . . . . Influence Increases 90 | . . . 90 Destroy 0b10 Robot/C 60 | . . . 60 Lose Combat Pursuer 30 | . . . 30 Influence Decreases 90 | . . . 90 Time Decay 70 | . . . 70 Lost Part 20 | . . . 20 Squads Dispatched 1 | . 1 . . Investigation . | . . . . Extermination . | . . . . Reinforcement 1 | . 1 . . Assault . | . . . . Garrison . | . . . . Intercept . | . . . . Searches Triggered . | . . . . Construction Impeded . | . . . . Haulers Reinforced . | . . . . Active Scanning Responses . | . . . . Cargo Convoy Interrupts . | . . . . Stealth | -11 -10 -10 -10 --------- Run | Yrd Mat Min Sub Distress Signals . | . . . . Communications Jammed . | . . . . Distress Signals . | . . . . Times Spotted 8 | . 1 . 7 Peak Tracking Total 6 | . 1 . 6 Tactical Retreats 1 | . . . 1 Traps | -11 -10 -10 -10 ------- Run | Yrd Mat Min Sub Traps Triggered . | . . . . Indirectly . | . . . . Trap Hack Attempts . | . . . . Triggered . | . . . . Disarmed . | . . . . Reprogrammed . | . . . . Reused . | . . . . Traps Extracted . | . . . . Installed . | . . . . Triggered . | . . . . Machines | -11 -10 -10 -10 ---------- Run | Yrd Mat Min Sub Machines Disabled . | . . . . Max in Single Turn . | . . . . Machines Repaired . | . . . . Machines Dismantled . | . . . . Machines Sabotaged . | . . . . Overloaded Fab Kills . | . . . . Hacking | -11 -10 -10 -10 --------- Run | Yrd Mat Min Sub Machines Accessed 2 | . 2 . . Terminals 2 | . 2 . . Fabricators . | . . . . Repair Stations . | . . . . Recycling Units . | . . . . Scanalyzers . | . . . . Garrison Access . | . . . . Total Hacks 3 | . 3 . . Successful . | . . . . Failed 3 | . 3 . . Catastrophic . | . . . . Database Lockouts . | . . . . Manual 1 | . 1 . . Terminals 3 | . 3 . . Fabricators . | . . . . Repair Stations . | . . . . Recycling Units . | . . . . Scanalyzers . | . . . . Garrison Access . | . . . . Terminal Hacks . | . . . . Fabricator Hacks . | . . . . Repair Station Hacks . | . . . . Recycling Unit Hacks . | . . . . Scanalyzer . | . . . . Garrison Access Hacks . | . . . . Unauthorized Hacks . | . . . . Terminals . | . . . . Fabricators . | . . . . Repair Stations . | . . . . Recycling Units . | . . . . Scanalyzers . | . . . . Garrison Access . | . . . . Data Cores Recovered . | . . . . Used . | . . . . Hacking Detections 2 | . 2 . . Full Trace Events . | . . . . Feedback Events . | . . . . Feedback Blocked . | . . . . Robot Schematics Acquired . | . . . . Robots Built . | . . . . Authchips . | . . . . Time . | . . . . Total Robot Build Rating . | . . . . Part Schematics Acquired . | . . . . Parts Built . | . . . . Authchips . | . . . . Time . | . . . . Total Part Build Rating . | . . . . Parts Repaired . | . . . . Time . | . . . . Parts Recycled . | . . . . Recycled Matter . | . . . . Retrieved Matter . | . . . . Retrieved Components . | . . . . Parts Scanalyzed . | . . . . Part Schematics Acquired . | . . . . Parts Damaged . | . . . . Bothacking | -11 -10 -10 -10 ------------ Run | Yrd Mat Min Sub Used RIF Installer . | . . . . Robots Hacked . | . . . . Non-combat . | . . . . Combat . | . . . . Robot Hacks Applied . | . . . . Relay Couplers Released . | . . . . Fabnet Peak Effective % . | . . . . Robots Rewired . | . . . . Allies Hacked . | . . . . Hacks Repelled . | . . . . Allies | -11 -10 -10 -10 -------- Run | Yrd Mat Min Sub Total Allies . | . . . . Largest Group . | . . . . Highest-Rated Group . | . . . . Highest-Rated Ally . | . . . . Total Orders . | . . . . Ally Attacks . | . . . . Total Damage . | . . . . Kills . | . . . . Allies Corrupted . | . . . . Allies Melted . | . . . . Intel | -11 -10 -10 -10 ------- Run | Yrd Mat Min Sub Active Infowar (turns) . | . . . . Robot Analysis Total . | . . . . Derelict Logs Recovered . | . . . . Drone Launches . | . . . . Drone Recoveries . | . . . . Exploration | -11 -10 -10 -10 ------------- Run | Yrd Mat Min Sub Turns Passed 713 | 43 59 262 349 Spaces Moved 628 | 38 64 291 235 Core 2 | 2 . . . Treads . | . . . . Legs . | . . . . Wheels 626 | 36 64 291 235 Hover . | . . . . Flight . | . . . . Fastest Speed 50 | 50 90 90 90 Average Speed 93 | 87 90 90 98 Slowest Speed 105 | 90 90 90 105 Overloaded Moves . | . . . . Propulsion Burnouts . | . . . . Robots Hopped . | . . . . Potential Cave-ins . | . . . . Cave-ins Triggered . | . . . . Exploration Rate (%) 21 | 4 25 43 15 Regions Visited 3 Branch Regions 2 Pre-discovered Areas . | . . . . Known Exits Taken . | . . . . Unknown Exits Taken 3 | 1 1 1 . Scrap Searched 1 | . . . 1 Spaces Dug . | . . . . Terrain Destroyed . | . . . . Melee . | . . . . Projectile . | . . . . AOE . | . . . . Terrain Rammed . | . . . . Walls Destroyed . | . . . . Machines Disabled . | . . . . Actions | -11 -10 -10 -10 --------- Run | Yrd Mat Min Sub Total 694 | 44 64 290 296 Wait 18 | . . . 18 Move 625 | 37 63 290 235 Hop . | . . . . Pick Up 3 | . . . 3 Fast Attach 9 | 6 1 . 2 Attach 1 | . . . 1 Detach . | . . . . Swap 2 | 1 . . 1 Drop 1 | . . . 1 Fire 35 | . . . 35 Melee . | . . . . Ram . | . . . . Kick . | . . . . Crush . | . . . . Escape Stasis . | . . . . Rewire . | . . . . Trap . | . . . . Miscellaneous . | . . . . Route ------- -11/Scrapyard -10/Materials -10/Mines -10/Subcaves History --------- Turn | Location | Event 5 | -11/Scrapyard | Discovered new exit (range 16) 44 | -11/Scrapyard | Entered Materials 81 | -10/Materials | Discovered new exit (range 12) 103 | -10/Materials | Entered Mines 305 | -10/Mines | Build established: Mutant 355 | -10/Mines | Discovered new exit (range 13) 365 | -10/Mines | Entered Subcaves 366 | -10/Subcaves | Approached by a straggling Scientist 697 | -10/Subcaves | Core integrity fell below 50% 707 | -10/Subcaves | Core integrity fell below 20% 714 | -10/Subcaves | Destroyed by 7F-X6C(R) with Subdweller Laser Last Messages --------------- Acquired 15 matter. Lgt. Assault Rifle fries itself beyond repair. Acquired 17 matter. Acquired 15 matter. Lgt. Ion Engine fries itself beyond repair. Flight Unit fries itself beyond repair. Sub. Monowheel shoots sparks and powers down. Searching scrap... Found Sub. Laser. Found Sub. Power Source. Found 53 Matter. Dropped Broken Sub. Monowheel. Acquired 10 matter. Ion Engine destroyed. C0-ZKR(R) destroyed. Acquired 6 matter. Acquired Sub. Power Source. Acquired Scrap Shield Fragment. Lgt. Assault Rifle destroyed. Sub. Power Source destroyed. Map ----- +----------------------------------------------------+ | ?????????????????????????????????????????????????? | | ?????????????????????????????????????????????????? | | ?????????????????????????????????????????????????? | | ?????????????????????????????????????????????????? | | ?????????????????????????????????????????????????? | | ?????????????????????????????????????????????????? | | ?????????????????????????????????????????????????? | | ?????????????????????????????????????????????????? | | ?????????????????????????????????????????????????? | | ?????????????????????????????????????????????????? | | ?????????????????????????????????????????????????? | | ?????????????????????????????????????????????????? | | ?????????????????????????????????????????????????? | | ?????????????? ?#????????????????????????????????? | | ?????????????? #???????????????????????????????? | | ???????????? " ???????????????????????????????? | | ????????????? " ####???????????????????????????? | | ?????????????? " "# ##???????????? ????????????? | | ??????????????? " " "##??????????# ?????????????? | | ????????????????? """""#?????????# ??????????????? | | ?????????????????##"" "##??????## #??????????????? | | ?????????????????# "##????? ##?????????????? | | ?????#####???????## ""#????# #?????????????? | | ???### ###?????## #???# #?????????????? | | ???# #?????# #### #??????????????? | | ????# ##????## @ #???????????????? | | ????### ##????# R ##???????????????? | | ??????### %###### ##????????????????? | | ????????# = ! ## ##?????????????????? | | ????###?# ## ##### #??????????????????? | | ???## ###### #### ##?????????????????? | | ???# ## ## #?????????????????? | | ???# #?????????????????? | | ???# #?????????????????? | | ???# ### #?????????????????? | | ???# ### #?## #?????????????????? | | ???## ???## #??# ### #?????????????????? | | ????##????## #??# #?######?????????????????? | | ??????????# #??## ## #?????????????????????? | | ??????????## #??## ##????????????????????? | | ??????????## ###?# #????????????????????? | | ?????????## ### #?# #????????????????????? | | ????????## ### ### ##????????????????????? | | ?????#### ## ##?????????????????????? | | ?????# ## #??????????????????????? | | ?????# ## ##??#####?####?###?????? | | ?????## ### #### ## ## ##????? | | ?????## ###?## ## ## ## ##???? | | ????## # ##??## # ## #???? | | ????# *[#???# #???????? | +----------------------------------------------------+ Best States ------------- Heat Dissipation 25 Energy Generation 15 Energy Capacity 250 Matter Stores 300 Matter Capacity 300 Sight Range 16 Terrain Scan Density 10 Propulsion Shielding 33 Evasion (%) 42 Item Schematics ----------------- None Robot Schematics ------------------ None Fabricated ------------ Nothing Repaired ---------- Nothing Alien Tech Used ----------------- None Achievements -------------- None Challenges ------------ None Game ------ Seed ResetReinforcedConstruct Manual? 0 Play Time 00:08:44 Cumulative 7.2 hours Start 2025.08.11 @ 19:18:09 End 2025.08.11 @ 19:26:00 Sessions 1 Manual Loads 0 Difficulty Rogue Special Mode None Game No. 15 Rogue 15 Adventurer 0 Explorer 0 Win Type - Total 0 Types 0/0/0/0/0/0/0/0/0/0 Lore% 0 Gallery% 11 Achievement% 14 Wizard Run 0 Options --------- Layout 1 ASCII 1 Keyboard 0 Movement Numpad Keybinds 0 Fullscreen 1 Font 24/Cog Map View 50x35 Zoom Use 0% Tactical HUD 0 Map Filters NONE Filters NONE Steam 0 RUN: a3cb76e4-8974-410b-a6dd-54e186447cd8